[Event "*** Titled Tuesday Blitz"]
[Site "Chess.com"]
[Date "2018.10.02"]
[Round "8"]
[White "kharov2001"]
[Black "nochewycandy"]
[Result "0-1"]
[WhiteElo "2188"]
[BlackElo "2181"]
[TimeControl "180+2"]
[EndTime "14:40:37 PDT"]
[Termination "nochewycandy won by resignation"]

1. e4 {[%clk 0:03:01.3]} 1... g6 {[%clk 0:02:57.1]} 2. d4 {[%clk 0:03:01.3]}
2... Bg7 {[%clk 0:02:57.9]} 3. Nc3 {[%clk 0:03:01.5]} 3... d6 {[%clk 0:02:58.2]}
4. f4 {[%clk 0:03:01.7]} 4... a6 {[%clk 0:02:59.4]} 5. Nf3 {[%clk 0:03:01.7]}
5... b5 {[%clk 0:03:00.4]} 6. Bd3 {[%clk 0:03:01.2]} 6... Nd7 {[%clk 0:03:00.8]}
7. e5 {[%clk 0:03:01.3]} 7... c5 {[%clk 0:03:01.8]} 8. Be4 {[%clk 0:03:02.6]}
8... Rb8 {[%clk 0:03:02.2]} 9. O-O {[%clk 0:03:03.5]} 9... cxd4 {[%clk
0:03:01.3]} 10. Qxd4 {[%clk 0:03:02.2]} 10... b4 {[%clk 0:02:49.6]} 11. Nd5
{[%clk 0:02:58]} 11... Nc5 {[%clk 0:02:45.3]} 12. Nxb4 {[%clk 0:02:48.1]} 12...
Nxe4 {[%clk 0:02:46.3]} 13. Nc6 {[%clk 0:02:27.8]} 13... Qc7 {[%clk 0:02:15.3]}
14. Nxb8 {[%clk 0:02:21]} 14... Nc5 {[%clk 0:02:06.5]} 15. exd6 {[%clk
0:02:17.2]} 15... Bxd4+ {[%clk 0:02:06.9]} 0-1

[Event "*** Titled Tuesday Blitz"]
[Site "Chess.com"]
[Date "2018.10.02"]
[Round "8"]
[White "Perecke"]
[Black "RitvarsReimanis"]
[Result "0-1"]
[WhiteElo "1982"]
[BlackElo "2604"]
[TimeControl "180+2"]
[EndTime "14:41:41 PDT"]
[Termination "RitvarsReimanis won by resignation"]

1. e4 {[%clk 0:02:47.9]} 1... c5 {[%clk 0:03:00.4]} 2. Nf3 {[%clk 0:02:44]} 2...
Nc6 {[%clk 0:03:01.6]} 3. c4 {[%clk 0:02:44.8]} 3... e5 {[%clk 0:03:02.6]} 4.
Be2 {[%clk 0:02:45.8]} 4... d6 {[%clk 0:03:04.5]} 5. O-O {[%clk 0:02:46.7]} 5...
f5 {[%clk 0:03:05.8]} 6. d3 {[%clk 0:02:45.1]} 6... Nf6 {[%clk 0:03:07.2]} 7.
Ne1 {[%clk 0:02:46.4]} 7... fxe4 {[%clk 0:03:07]} 8. dxe4 {[%clk 0:02:48.3]}
8... Nxe4 {[%clk 0:03:02.6]} 9. f4 {[%clk 0:02:49.4]} 9... Be7 {[%clk
0:02:55.4]} 10. fxe5 {[%clk 0:02:40.4]} 10... dxe5 {[%clk 0:02:55.9]} 11. Nd2
{[%clk 0:01:21.9]} 11... Qd4+ {[%clk 0:02:51.5]} 12. Kh1 {[%clk 0:01:19.3]}
12... Nf2+ {[%clk 0:02:34.7]} 13. Rxf2 {[%clk 0:01:19.8]} 13... Qxf2 {[%clk
0:02:36.6]} 14. Nd3 {[%clk 0:01:19.3]} 14... Qf7 {[%clk 0:02:29.6]} 15. Nf3
{[%clk 0:00:52.7]} 0-1

[Event "*** Titled Tuesday Blitz"]
[Site "Chess.com"]
[Date "2018.10.02"]
[Round "8"]
[White "Blitzstream"]
[Black "Rodalquilar"]
[Result "0-1"]
[WhiteElo "2610"]
[BlackElo "2571"]
[TimeControl "180+2"]
[EndTime "14:42:47 PDT"]
[Termination "Rodalquilar won by resignation"]

1. d4 {[%clk 0:03:01.9]} 1... Nf6 {[%clk 0:03:00.5]} 2. Bg5 {[%clk 0:03:02.7]}
2... Ne4 {[%clk 0:03:00.5]} 3. Bh4 {[%clk 0:03:04]} 3... c5 {[%clk 0:02:56.9]}
4. f3 {[%clk 0:03:05.1]} 4... g5 {[%clk 0:02:58.3]} 5. fxe4 {[%clk 0:03:07]}
5... gxh4 {[%clk 0:02:59.6]} 6. e3 {[%clk 0:03:08.6]} 6... Qb6 {[%clk
0:02:57.9]} 7. Nc3 {[%clk 0:03:09.2]} 7... Bg7 {[%clk 0:02:48.7]} 8. Nd5 {[%clk
0:03:01.2]} 8... Qa5+ {[%clk 0:02:44.5]} 9. c3 {[%clk 0:03:02.3]} 9... e6 {[%clk
0:02:42.5]} 10. Qg4 {[%clk 0:03:03]} 10... Kf8 {[%clk 0:02:35.9]} 11. b4 {[%clk
0:02:18.9]} 11... cxb4 {[%clk 0:02:19.1]} 12. cxb4 {[%clk 0:02:20.8]} 12... Qa3
{[%clk 0:02:20.2]} 13. Qxh4 {[%clk 0:02:10.1]} 13... Nc6 {[%clk 0:02:20.3]} 14.
b5 {[%clk 0:01:57.4]} 14... exd5 {[%clk 0:01:55.8]} 15. bxc6 {[%clk 0:01:57.8]}
15... Qxe3+ {[%clk 0:01:45]} 16. Be2 {[%clk 0:01:57.9]} 16... Bh6 {[%clk
0:01:45.7]} 17. Nf3 {[%clk 0:01:28.6]} 17... Qc3+ {[%clk 0:01:41.5]} 18. Kf2
{[%clk 0:01:17.3]} 18... Be3+ {[%clk 0:01:41.7]} 19. Kf1 {[%clk 0:00:51.8]}
19... Qxa1+ {[%clk 0:01:42.2]} 20. Ne1 {[%clk 0:00:53.3]} 20... Bd2 {[%clk
0:01:37.8]} 0-1

[Event "*** Titled Tuesday Blitz"]
[Site "Chess.com"]
[Date "2018.10.02"]
[Round "8"]
[White "Korchmar_Vasiliy"]
[Black "robbykevlishvili"]
[Result "1-0"]
[WhiteElo "2708"]
[BlackElo "2678"]
[TimeControl "180+2"]
[EndTime "14:43:23 PDT"]
[Termination "Korchmar_Vasiliy won by resignation"]

1. d4 {[%clk 0:03:00.1]} 1... Nf6 {[%clk 0:03:00.5]} 2. c4 {[%clk 0:03:01.4]}
2... g6 {[%clk 0:03:02.1]} 3. Nc3 {[%clk 0:03:02.4]} 3... Bg7 {[%clk 0:03:03.7]}
4. e4 {[%clk 0:03:03.1]} 4... O-O {[%clk 0:03:05.3]} 5. Nf3 {[%clk 0:03:03.9]}
5... d6 {[%clk 0:03:06.5]} 6. h3 {[%clk 0:03:05.4]} 6... c6 {[%clk 0:03:05.1]}
7. Be3 {[%clk 0:03:05.2]} 7... a6 {[%clk 0:03:05.9]} 8. Be2 {[%clk 0:02:44.5]}
8... Nbd7 {[%clk 0:03:07]} 9. O-O {[%clk 0:02:36.7]} 9... b5 {[%clk 0:03:07.9]}
10. e5 {[%clk 0:02:31.5]} 10... Ne8 {[%clk 0:03:07.1]} 11. Bf4 {[%clk
0:02:25.2]} 11... bxc4 {[%clk 0:03:06.6]} 12. Bxc4 {[%clk 0:02:25.7]} 12... d5
{[%clk 0:03:03.3]} 13. Bd3 {[%clk 0:02:25.9]} 13... Nc7 {[%clk 0:03:04.4]} 14.
Qd2 {[%clk 0:02:19.2]} 14... c5 {[%clk 0:03:03.5]} 15. Bh6 {[%clk 0:02:19.7]}
15... cxd4 {[%clk 0:03:02.9]} 16. Bxg7 {[%clk 0:02:16.6]} 16... Kxg7 {[%clk
0:03:00]} 17. Ne2 {[%clk 0:02:18]} 17... f6 {[%clk 0:02:40.3]} 18. Nexd4 {[%clk
0:02:12.6]} 18... Nxe5 {[%clk 0:02:38.6]} 19. Nxe5 {[%clk 0:02:13.9]} 19... fxe5
{[%clk 0:02:40.5]} 20. Nc6 {[%clk 0:02:13.2]} 20... Qd6 {[%clk 0:02:40.8]} 21.
Qc3 {[%clk 0:01:56.3]} 21... d4 {[%clk 0:02:24.8]} 22. Qc1 {[%clk 0:01:57.5]}
22... Nd5 {[%clk 0:02:20.6]} 23. Re1 {[%clk 0:01:53.8]} 23... Nf4 {[%clk
0:02:16.7]} 24. Nxe5 {[%clk 0:01:50.8]} 24... Bb7 {[%clk 0:02:14.4]} 25. Bf1
{[%clk 0:01:49.4]} 25... Qd5 {[%clk 0:02:11.3]} 26. f3 {[%clk 0:01:47.5]} 26...
Rf5 {[%clk 0:02:10.4]} 27. Qc7 {[%clk 0:01:44.9]} 27... Kh6 {[%clk 0:01:38.8]}
28. Ng4+ {[%clk 0:01:41.6]} 28... Kh5 {[%clk 0:01:34.6]} 29. Rxe7 {[%clk
0:01:38.2]} 29... h6 {[%clk 0:01:34]} 30. Rh7 {[%clk 0:01:36.4]} 30... Kh4
{[%clk 0:01:19.3]} 31. Kh2 {[%clk 0:01:30.1]} 1-0

[Event "*** Titled Tuesday Blitz"]
[Site "Chess.com"]
[Date "2018.10.02"]
[Round "8"]
[White "BilodeauA"]
[Black "petrpalachev"]
[Result "0-1"]
[WhiteElo "2875"]
[BlackElo "2807"]
[TimeControl "180+2"]
[EndTime "14:43:33 PDT"]
[Termination "petrpalachev won by checkmate"]

1. d4 {[%clk 0:03:01.9]} 1... d5 {[%clk 0:02:58.6]} 2. Nc3 {[%clk 0:03:03.1]}
2... Nf6 {[%clk 0:02:58.3]} 3. Bf4 {[%clk 0:03:03.7]} 3... a6 {[%clk 0:02:52.9]}
4. e3 {[%clk 0:03:04.7]} 4... Bf5 {[%clk 0:02:39.8]} 5. f3 {[%clk 0:03:04.7]}
5... h5 {[%clk 0:02:39.9]} 6. Bd3 {[%clk 0:03:01.6]} 6... Bxd3 {[%clk 0:02:40]}
7. Qxd3 {[%clk 0:03:03.5]} 7... e6 {[%clk 0:02:41.8]} 8. Nge2 {[%clk 0:03:04]}
8... c5 {[%clk 0:02:39.9]} 9. e4 {[%clk 0:03:00.1]} 9... cxd4 {[%clk 0:02:03.1]}
10. Nxd4 {[%clk 0:03:02]} 10... dxe4 {[%clk 0:02:05]} 11. Nxe4 {[%clk
0:03:01.9]} 11... Nd5 {[%clk 0:02:05.3]} 12. Bg5 {[%clk 0:02:43.2]} 12... Be7
{[%clk 0:02:06]} 13. h4 {[%clk 0:02:43.9]} 13... Nb4 {[%clk 0:02:02.4]} 14. Qb3
{[%clk 0:02:04.3]} 14... Qxd4 {[%clk 0:02:03]} 15. Bxe7 {[%clk 0:01:56.4]} 15...
Kxe7 {[%clk 0:02:02.1]} 16. Rd1 {[%clk 0:01:57.6]} 16... Qb6 {[%clk 0:01:57.8]}
17. c3 {[%clk 0:01:46.3]} 17... f5 {[%clk 0:01:31.4]} 18. Ng5 {[%clk 0:01:31.2]}
18... Nd5 {[%clk 0:01:29.9]} 19. Qa3+ {[%clk 0:01:32.5]} 19... Kf6 {[%clk
0:01:28.9]} 20. Rd4 {[%clk 0:01:08.7]} 20... Nc6 {[%clk 0:01:27]} 21. Rxd5
{[%clk 0:01:09.2]} 21... Qe3+ {[%clk 0:01:25.8]} 22. Kd1 {[%clk 0:00:50.5]}
22... Rad8 {[%clk 0:01:27]} 23. Rxd8 {[%clk 0:00:44.4]} 23... Rxd8+ {[%clk
0:01:28.9]} 24. Kc2 {[%clk 0:00:46]} 24... Rd2+ {[%clk 0:01:20.4]} 25. Kb3
{[%clk 0:00:39.3]} 25... Qb6+ {[%clk 0:01:20.9]} 26. Kc4 {[%clk 0:00:35.5]}
26... Qb5# {[%clk 0:01:21.4]} 0-1

[Event "*** Titled Tuesday Blitz"]
[Site "Chess.com"]
[Date "2018.10.02"]
[Round "8"]
[White "maciek_92"]
[Black "Quiet_Desperation"]
[Result "1-0"]
[WhiteElo "2624"]
[BlackElo "1942"]
[TimeControl "180+2"]
[EndTime "14:43:39 PDT"]
[Termination "maciek_92 won by resignation"]

1. c4 {[%clk 0:03:01.9]} 1... e6 {[%clk 0:02:58.2]} 2. Nc3 {[%clk 0:03:03.3]}
2... Nf6 {[%clk 0:02:58.5]} 3. d4 {[%clk 0:03:03.9]} 3... Bb4 {[%clk 0:02:59.1]}
4. e3 {[%clk 0:03:04.8]} 4... b6 {[%clk 0:03:00.3]} 5. Bd3 {[%clk 0:03:03]} 5...
Bb7 {[%clk 0:03:00.7]} 6. Nf3 {[%clk 0:03:04.5]} 6... O-O {[%clk 0:03:01]} 7.
O-O {[%clk 0:03:04.8]} 7... d5 {[%clk 0:03:02.4]} 8. a3 {[%clk 0:03:01.1]} 8...
Be7 {[%clk 0:03:00.9]} 9. cxd5 {[%clk 0:02:48.2]} 9... Nxd5 {[%clk 0:03:01]} 10.
e4 {[%clk 0:02:47.7]} 10... Nxc3 {[%clk 0:02:58.3]} 11. bxc3 {[%clk 0:02:49.6]}
11... c5 {[%clk 0:02:59.3]} 12. Qe2 {[%clk 0:02:51.2]} 12... Nc6 {[%clk
0:02:52.7]} 13. Bb2 {[%clk 0:02:52.2]} 13... Rc8 {[%clk 0:02:52.1]} 14. Rad1
{[%clk 0:02:47.4]} 14... cxd4 {[%clk 0:02:47.1]} 15. cxd4 {[%clk 0:02:49.3]}
15... Na5 {[%clk 0:02:45.7]} 16. Rfe1 {[%clk 0:02:34.1]} 16... Qd7 {[%clk
0:02:37.9]} 17. d5 {[%clk 0:02:32.6]} 17... Qa4 {[%clk 0:02:17.4]} 18. Nd4
{[%clk 0:02:18.4]} 18... Nc4 {[%clk 0:02:10.1]} 19. Ba1 {[%clk 0:02:16]} 19...
exd5 {[%clk 0:01:57.9]} 20. e5 {[%clk 0:02:15.3]} 20... g6 {[%clk 0:01:41.4]}
21. Nf5 {[%clk 0:01:57.4]} 21... gxf5 {[%clk 0:01:30.4]} 22. Bxf5 {[%clk
0:01:54.5]} 22... Rc6 {[%clk 0:00:37.4]} 23. e6 {[%clk 0:01:39.5]} 23... Rxe6
{[%clk 0:00:28.9]} 24. Bxe6 {[%clk 0:01:25]} 24... fxe6 {[%clk 0:00:29.9]} 25.
Qg4+ {[%clk 0:01:18.1]} 1-0

[Event "*** Titled Tuesday Blitz"]
[Site "Chess.com"]
[Date "2018.10.02"]
[Round "8"]
[White "dmosesov"]
[Black "ddtru"]
[Result "1-0"]
[WhiteElo "2310"]
[BlackElo "2219"]
[TimeControl "180+2"]
[EndTime "14:43:39 PDT"]
[Termination "dmosesov won by resignation"]

1. e4 {[%clk 0:03:01.9]} 1... c5 {[%clk 0:03:00.2]} 2. Nf3 {[%clk 0:03:02.7]}
2... e6 {[%clk 0:03:01.1]} 3. d4 {[%clk 0:03:03.4]} 3... cxd4 {[%clk 0:03:01.4]}
4. Nxd4 {[%clk 0:03:05.3]} 4... Nc6 {[%clk 0:03:02.5]} 5. Nc3 {[%clk 0:03:05.9]}
5... Qc7 {[%clk 0:03:03.4]} 6. Be3 {[%clk 0:03:04.7]} 6... a6 {[%clk 0:03:03.9]}
7. Be2 {[%clk 0:03:05.9]} 7... Nf6 {[%clk 0:03:03.3]} 8. O-O {[%clk 0:03:06.5]}
8... d6 {[%clk 0:03:04]} 9. Kh1 {[%clk 0:03:02.2]} 9... Be7 {[%clk 0:03:04.4]}
10. f4 {[%clk 0:03:03.1]} 10... O-O {[%clk 0:03:04.1]} 11. Qe1 {[%clk
0:03:02.8]} 11... Nxd4 {[%clk 0:03:03.4]} 12. Bxd4 {[%clk 0:03:04.6]} 12... b5
{[%clk 0:03:04.5]} 13. a3 {[%clk 0:03:03.3]} 13... Bb7 {[%clk 0:03:05.5]} 14.
Bf3 {[%clk 0:03:00.7]} 14... Rad8 {[%clk 0:02:52.1]} 15. Qg3 {[%clk 0:02:59.4]}
15... Rfe8 {[%clk 0:02:41.8]} 16. Rae1 {[%clk 0:02:50.3]} 16... Rd7 {[%clk
0:02:42.2]} 17. e5 {[%clk 0:02:10.2]} 17... dxe5 {[%clk 0:02:30.4]} 18. Bxe5
{[%clk 0:02:12.1]} 18... Qb6 {[%clk 0:02:18]} 19. Bxb7 {[%clk 0:02:12]} 19...
Qxb7 {[%clk 0:02:01.7]} 20. f5 {[%clk 0:02:08.5]} 20... exf5 {[%clk 0:00:54.4]}
21. Bxf6 {[%clk 0:02:02.6]} 21... g6 {[%clk 0:00:40.6]} 22. Qf4 {[%clk
0:01:48.1]} 22... Rdd8 {[%clk 0:00:21.6]} 23. Rxe7 {[%clk 0:01:38.1]} 23... Rxe7
{[%clk 0:00:22.4]} 24. Qh6 {[%clk 0:01:33.2]} 1-0

[Event "*** Titled Tuesday Blitz"]
[Site "Chess.com"]
[Date "2018.10.02"]
[Round "8"]
[White "hypert"]
[Black "BillForster"]
[Result "1-0"]
[WhiteElo "2307"]
[BlackElo "1691"]
[TimeControl "180+2"]
[EndTime "14:44:15 PDT"]
[Termination "hypert won by resignation"]

1. Nf3 {[%clk 0:03:01.9]} 1... d5 {[%clk 0:02:59.3]} 2. c4 {[%clk 0:03:02.1]}
2... c6 {[%clk 0:02:58.9]} 3. d4 {[%clk 0:03:02]} 3... Nf6 {[%clk 0:02:57.7]} 4.
Nc3 {[%clk 0:03:01.6]} 4... e6 {[%clk 0:02:58.1]} 5. Bg5 {[%clk 0:03:01.5]} 5...
dxc4 {[%clk 0:02:58.4]} 6. e4 {[%clk 0:03:00.2]} 6... b5 {[%clk 0:02:58.6]} 7.
e5 {[%clk 0:02:59.9]} 7... h6 {[%clk 0:02:59.6]} 8. Bh4 {[%clk 0:02:47.2]} 8...
g5 {[%clk 0:03:00.4]} 9. Bg3 {[%clk 0:02:48]} 9... Nd5 {[%clk 0:02:50.5]} 10.
Be2 {[%clk 0:02:46.6]} 10... Nd7 {[%clk 0:02:36.8]} 11. Nd2 {[%clk 0:02:36.9]}
11... Bb7 {[%clk 0:02:33.2]} 12. Bh5 {[%clk 0:02:36.7]} 12... Qb6 {[%clk
0:01:58.5]} 13. Nde4 {[%clk 0:02:27.5]} 13... Nf4 {[%clk 0:01:38.3]} 14. Bxf4
{[%clk 0:02:23]} 14... gxf4 {[%clk 0:01:36.5]} 15. O-O {[%clk 0:02:24.5]} 15...
b4 {[%clk 0:01:23.4]} 16. Ne2 {[%clk 0:02:23.5]} 16... O-O-O {[%clk 0:01:16]}
17. Bxf7 {[%clk 0:02:22.7]} 17... Nxe5 {[%clk 0:01:16.1]} 18. Bxe6+ {[%clk
0:02:20.1]} 18... Kb8 {[%clk 0:01:15.3]} 19. Qc2 {[%clk 0:02:01.8]} 19... Ng6
{[%clk 0:00:43.4]} 20. Bxc4 {[%clk 0:01:45.9]} 20... c5 {[%clk 0:00:38.8]} 21.
Nxc5 {[%clk 0:01:23]} 21... f3 {[%clk 0:00:30.6]} 22. Nxb7 {[%clk 0:01:13.6]}
22... fxg2 {[%clk 0:00:18.3]} 23. Nxd8 {[%clk 0:01:09.9]} 23... gxf1=Q+ {[%clk
0:00:15]} 24. Kxf1 {[%clk 0:01:08.9]} 24... Qxd8 {[%clk 0:00:15.4]} 25. Qxg6
{[%clk 0:01:07]} 1-0

[Event "*** Titled Tuesday Blitz"]
[Site "Chess.com"]
[Date "2018.10.02"]
[Round "8"]
[White "017290"]
[Black "Kawhi_Leonard2"]
[Result "0-1"]
[WhiteElo "2274"]
[BlackElo "2277"]
[TimeControl "180+2"]
[EndTime "14:44:19 PDT"]
[Termination "Kawhi_Leonard2 won by checkmate"]

1. e4 {[%clk 0:03:01.9]} 1... c5 {[%clk 0:02:59.9]} 2. Nf3 {[%clk 0:03:02]} 2...
d6 {[%clk 0:03:01.1]} 3. c3 {[%clk 0:03:02.5]} 3... Nf6 {[%clk 0:03:01.4]} 4. e5
{[%clk 0:03:03]} 4... Nd5 {[%clk 0:03:01.2]} 5. d4 {[%clk 0:03:03.7]} 5... cxd4
{[%clk 0:03:02.2]} 6. cxd4 {[%clk 0:03:05.6]} 6... e6 {[%clk 0:03:02.4]} 7. Nc3
{[%clk 0:03:05.3]} 7... Nxc3 {[%clk 0:02:52.6]} 8. bxc3 {[%clk 0:03:07.2]} 8...
Nc6 {[%clk 0:02:52.8]} 9. exd6 {[%clk 0:03:06.5]} 9... Bxd6 {[%clk 0:02:52.6]}
10. Bd3 {[%clk 0:03:07.5]} 10... b6 {[%clk 0:02:40.1]} 11. O-O {[%clk
0:02:57.2]} 11... Bb7 {[%clk 0:02:41.2]} 12. Re1 {[%clk 0:02:53]} 12... Ne7
{[%clk 0:02:35.8]} 13. Rb1 {[%clk 0:02:49.4]} 13... Rc8 {[%clk 0:02:34.8]} 14.
Qa4+ {[%clk 0:02:33.6]} 14... Qd7 {[%clk 0:02:27.8]} 15. Qxa7 {[%clk 0:02:09.2]}
15... Bxf3 {[%clk 0:02:28.2]} 16. Qxd7+ {[%clk 0:02:00.8]} 16... Kxd7 {[%clk
0:02:30.1]} 17. gxf3 {[%clk 0:02:00.8]} 17... Rxc3 {[%clk 0:02:31.4]} 18. Bb5+
{[%clk 0:01:58]} 18... Kc7 {[%clk 0:02:23.7]} 19. Be3 {[%clk 0:01:25.8]} 19...
Nd5 {[%clk 0:02:21.9]} 20. Rec1 {[%clk 0:01:26.6]} 20... Kb7 {[%clk 0:02:20.2]}
21. a4 {[%clk 0:01:16.9]} 21... Rhc8 {[%clk 0:02:18]} 22. Re1 {[%clk 0:00:33.9]}
22... Bf4 {[%clk 0:02:05]} 23. a5 {[%clk 0:00:24.6]} 23... Nxe3 {[%clk 0:01:59]}
24. fxe3 {[%clk 0:00:14.3]} 24... Bxe3+ {[%clk 0:02:00.2]} 25. Rxe3 {[%clk
0:00:14.3]} 25... Rxe3 {[%clk 0:02:00.3]} 26. Kf2 {[%clk 0:00:15.5]} 26... Rcc3
{[%clk 0:01:56.2]} 27. Be2 {[%clk 0:00:16.6]} 27... Rb3 {[%clk 0:01:55.7]} 28.
a6+ {[%clk 0:00:18]} 28... Ka7 {[%clk 0:01:54.3]} 29. Rd1 {[%clk 0:00:19.3]}
29... b5 {[%clk 0:01:45.8]} 30. d5 {[%clk 0:00:20.3]} 30... exd5 {[%clk
0:01:47.1]} 31. Rxd5 {[%clk 0:00:22.2]} 31... Kxa6 {[%clk 0:01:48.4]} 32. Rd7
{[%clk 0:00:16.5]} 32... Re5 {[%clk 0:01:48.8]} 33. Rxf7 {[%clk 0:00:17.3]}
33... Rb2 {[%clk 0:01:50.1]} 34. Rxg7 {[%clk 0:00:17.6]} 34... Rexe2+ {[%clk
0:01:50.7]} 35. Kf1 {[%clk 0:00:18.9]} 35... Rxh2 {[%clk 0:01:50.8]} 36. Kg1
{[%clk 0:00:19]} 36... Rhc2 {[%clk 0:01:50.6]} 37. Kh1 {[%clk 0:00:20.3]} 37...
Rb1+ {[%clk 0:01:51]} 38. Rg1 {[%clk 0:00:21.9]} 38... Rxg1+ {[%clk 0:01:51.8]}
39. Kxg1 {[%clk 0:00:23.8]} 39... b4 {[%clk 0:01:53]} 40. f4 {[%clk 0:00:25.7]}
40... b3 {[%clk 0:01:54.3]} 41. f5 {[%clk 0:00:27.6]} 41... b2 {[%clk
0:01:55.8]} 42. f6 {[%clk 0:00:29.5]} 42... b1=Q# {[%clk 0:01:57.2]} 0-1

[Event "*** Titled Tuesday Blitz"]
[Site "Chess.com"]
[Date "2018.10.02"]
[Round "8"]
[White "severomorskij"]
[Black "kasparik_garik"]
[Result "1-0"]
[WhiteElo "2690"]
[BlackElo "2556"]
[TimeControl "180+2"]
[EndTime "14:44:32 PDT"]
[Termination "severomorskij won by resignation"]

1. d4 {[%clk 0:03:01.9]} 1... Nf6 {[%clk 0:02:56.2]} 2. Bg5 {[%clk 0:03:00.1]}
2... e6 {[%clk 0:02:55.7]} 3. e4 {[%clk 0:03:00.7]} 3... h6 {[%clk 0:02:49.2]}
4. Bxf6 {[%clk 0:03:01.3]} 4... Qxf6 {[%clk 0:02:50.2]} 5. c3 {[%clk 0:03:02.7]}
5... d5 {[%clk 0:02:44.3]} 6. Nd2 {[%clk 0:02:55.8]} 6... dxe4 {[%clk 0:02:37]}
7. Nxe4 {[%clk 0:02:56.3]} 7... Qd8 {[%clk 0:02:37.8]} 8. Nf3 {[%clk 0:02:56.5]}
8... Bd6 {[%clk 0:02:31.8]} 9. Bd3 {[%clk 0:02:56.7]} 9... Nd7 {[%clk
0:02:25.4]} 10. Qe2 {[%clk 0:02:56.6]} 10... Nf6 {[%clk 0:02:23.6]} 11. O-O-O
{[%clk 0:02:57.1]} 11... Nxe4 {[%clk 0:02:14.1]} 12. Qxe4 {[%clk 0:02:52.5]}
12... Bd7 {[%clk 0:01:51.4]} 13. Ne5 {[%clk 0:02:40.7]} 13... Bxe5 {[%clk
0:01:44.2]} 14. dxe5 {[%clk 0:02:40.4]} 14... Qe7 {[%clk 0:00:36.3]} 15. Qxb7
{[%clk 0:02:36.4]} 15... O-O {[%clk 0:00:37.2]} 16. Qxc7 {[%clk 0:02:25.4]}
16... Rac8 {[%clk 0:00:32.3]} 17. Qxd7 {[%clk 0:02:20.7]} 17... Qxd7 {[%clk
0:00:25.3]} 18. Bh7+ {[%clk 0:02:20.9]} 18... Kxh7 {[%clk 0:00:26.3]} 19. Rxd7
{[%clk 0:02:22.3]} 19... a5 {[%clk 0:00:21.1]} 20. Kc2 {[%clk 0:02:22.6]} 20...
g5 {[%clk 0:00:21.8]} 21. h4 {[%clk 0:02:17.8]} 21... Kg6 {[%clk 0:00:22.6]} 22.
g4 {[%clk 0:02:18.3]} 22... gxh4 {[%clk 0:00:18.3]} 23. Rxh4 {[%clk 0:02:16.7]}
23... Rc4 {[%clk 0:00:18.2]} 24. Rd4 {[%clk 0:01:55.6]} 24... Rfc8 {[%clk
0:00:18.6]} 25. Rxc4 {[%clk 0:01:40.1]} 25... Rxc4 {[%clk 0:00:19.1]} 26. f3
{[%clk 0:01:41.2]} 26... Rc5 {[%clk 0:00:17.3]} 27. Rh5 {[%clk 0:01:40.1]} 27...
Rd5 {[%clk 0:00:13.3]} 28. b3 {[%clk 0:01:35.1]} 28... Rd8 {[%clk 0:00:11.2]}
29. a4 {[%clk 0:01:34.4]} 29... Rd7 {[%clk 0:00:11.8]} 30. b4 {[%clk 0:01:28.6]}
30... axb4 {[%clk 0:00:12.5]} 31. cxb4 {[%clk 0:01:29.7]} 31... Rd4 {[%clk
0:00:13.4]} 32. Kc3 {[%clk 0:01:30.5]} 32... Rf4 {[%clk 0:00:11.5]} 33. Rh3
{[%clk 0:01:30.8]} 1-0

[Event "*** Titled Tuesday Blitz"]
[Site "Chess.com"]
[Date "2018.10.02"]
[Round "8"]
[White "Blagorod"]
[Black "evgenysharapov"]
[Result "0-1"]
[WhiteElo "2050"]
[BlackElo "2444"]
[TimeControl "180+2"]
[EndTime "14:44:33 PDT"]
[Termination "evgenysharapov won by resignation"]

1. e4 {[%clk 0:03:01.9]} 1... c5 {[%clk 0:02:55.6]} 2. Nc3 {[%clk 0:03:01.7]}
2... Nc6 {[%clk 0:02:55.4]} 3. g3 {[%clk 0:03:03.3]} 3... g6 {[%clk 0:02:55.8]}
4. Bg2 {[%clk 0:03:04.9]} 4... Bg7 {[%clk 0:02:56.6]} 5. d3 {[%clk 0:03:06.5]}
5... e5 {[%clk 0:02:57.2]} 6. Nh3 {[%clk 0:03:02.3]} 6... Nge7 {[%clk
0:02:57.3]} 7. O-O {[%clk 0:03:03.2]} 7... O-O {[%clk 0:02:57.5]} 8. f4 {[%clk
0:03:01.8]} 8... d6 {[%clk 0:02:58.2]} 9. f5 {[%clk 0:02:56.3]} 9... f6 {[%clk
0:02:58.6]} 10. fxg6 {[%clk 0:02:29.3]} 10... hxg6 {[%clk 0:02:58.2]} 11. Be3
{[%clk 0:02:10.5]} 11... Nd4 {[%clk 0:02:54.2]} 12. Qd2 {[%clk 0:02:03.6]} 12...
Kh7 {[%clk 0:02:48.2]} 13. Ne2 {[%clk 0:01:47.5]} 13... Bg4 {[%clk 0:02:41.3]}
14. Nc1 {[%clk 0:01:26.5]} 14... Qd7 {[%clk 0:02:39]} 15. Nf2 {[%clk 0:01:09.4]}
15... Nf3+ {[%clk 0:02:23.2]} 16. Bxf3 {[%clk 0:01:09.4]} 16... Bxf3 {[%clk
0:02:24]} 17. Ne2 {[%clk 0:00:46.2]} 17... f5 {[%clk 0:02:23.6]} 18. exf5 {[%clk
0:00:41.3]} 18... gxf5 {[%clk 0:02:15]} 19. Nh3 {[%clk 0:00:33.4]} 19... Bg4
{[%clk 0:02:07]} 20. Ng5+ {[%clk 0:00:31.7]} 20... Kg6 {[%clk 0:02:05.1]} 21. h3
{[%clk 0:00:20.7]} 21... Bxe2 {[%clk 0:02:02.4]} 22. Qxe2 {[%clk 0:00:21.3]}
22... Bf6 {[%clk 0:01:49.8]} 23. h4 {[%clk 0:00:22]} 23... Rh8 {[%clk
0:01:46.6]} 24. Qf3 {[%clk 0:00:19.2]} 24... d5 {[%clk 0:01:42.3]} 25. g4 {[%clk
0:00:18.1]} 25... Rxh4 {[%clk 0:01:30.5]} 26. gxf5+ {[%clk 0:00:16.3]} 26...
Qxf5 {[%clk 0:01:27]} 27. Qxf5+ {[%clk 0:00:14.1]} 27... Nxf5 {[%clk 0:01:27.3]}
28. Nf3 {[%clk 0:00:11.2]} 28... Nxe3 {[%clk 0:01:23.3]} 29. Nxh4+ {[%clk
0:00:11.7]} 29... Bxh4 {[%clk 0:01:23.9]} 30. Rf3 {[%clk 0:00:12.2]} 30... Nxc2
{[%clk 0:01:20.4]} 31. Rc1 {[%clk 0:00:12]} 31... Nd4 {[%clk 0:01:20.7]} 32. Rh3
{[%clk 0:00:12.3]} 32... Ne2+ {[%clk 0:01:20]} 33. Kh2 {[%clk 0:00:13.4]} 33...
Nxc1 {[%clk 0:01:20.5]} 34. Rxh4 {[%clk 0:00:15.1]} 34... Nxd3 {[%clk
0:01:20.9]} 0-1